bitfinex/quotes_ETHUSD_20220201
["timestamp","ask_amount","ask_price","bid_price","bid_amount"]
[1643733651957,1.51061207,2791.7,2790.7,0.89577]
[1643733651958,0.88900982,2791.2,2790.7,0.89577]
[1643733652159,2.10583036,2791.1,2790.7,0.89577]
[1643733652358,0.59514488,2791.1,2790.8,0.3]
[1643733652560,0.59514488,2791.1,2790.3,0.1791]
[1643733652561,1.51072493,2791.0,2790.3,0.1791]
[1643733652762,1.51072493,2791.0,2789.9,0.27639994]
[1643733652763,0.6091,2790.9,2789.9,0.27639994]
[1643733652960,1.51072493,2790.8,2789.9,0.27639994]
[1643733653160,0.75741606,2790.0,2789.9,0.27639994]
[1643733653362,0.1791,2790.7,2789.9,0.27639994]
[1643733653565,0.37400507,2790.4,2789.9,0.27639994]
[1643733653760,0.37400507,2790.4,2789.9,1.17251994]
[1643733654160,0.37400507,2790.4,2790.0,0.3]
[1643733654363,0.68635124,2790.4,2790.0,0.3]
[1643733655406,0.43465261,2790.3,2790.0,0.3]
[1643733656608,0.1792,2790.3,2790.0,0.3]
[1643733656811,0.1792,2790.3,2789.9,1.17251994]
[1643733657110,0.43,2790.8,2789.9,1.17251994]
[1643733657111,0.43,2790.2,2789.9,0.89612]
[1643733657309,0.43,2790.2,2789.6,7.6492]
[1643733657712,0.70259213,2790.7,2789.6,10.26847264]
[1643733657910,0.43,2791.1,2789.8,0.01287165]
[1643733658110,1.5109167,2791.0,2790.0,6.322554]
[1643733658310,1.5109167,2791.0,2790.1,1.0]
[1643733658512,1.5109167,2790.9,2790.1,1.0]
[1643733658713,0.31608938,2790.7,2790.0,7.518504]
[1643733658912,1.51098157,2790.6,2790.0,7.518504]
[1643733659150,1.51098157,2790.6,2790.0,6.622554]
[1643733659655,0.70400646,2790.5,2790.0,6.622554]
[1643733661455,0.70400646,2790.5,2790.0,6.64035185]
[1643733661654,0.70400646,2790.5,2790.0,6.622554]
[1643733661858,0.43,2791.1,2790.2,0.89602]
[1643733662056,0.1792,2791.3,2790.3,0.01919523]
[1643733662057,1.51089374,2791.0,2790.3,0.01919523]
[1643733662258,1.8567155,2791.2,2790.4,1.79162]
[1643733662456,0.34582176,2791.2,2790.4,1.79162]
[1643733662656,1.51077177,2791.1,2790.4,1.79162]
[1643733662903,0.9199691,2790.7,2790.4,1.79162]
[1643733663702,0.34582176,2791.2,2790.4,1.79162]
[1643733663905,1.51085225,2791.1,2790.4,1.79162]
[1643733664304,1.94085225,2791.1,2790.4,1.79162]
[1643733664504,1.51085225,2791.0,2790.4,1.79162]
[1643733665107,1.51085225,2791.0,2790.5,0.3]
[1643733665307,0.1792,2791.3,2790.5,0.3]
[1643733665506,1.51065548,2791.2,2790.5,0.3]
[1643733665707,1.50923261,2791.2,2790.5,0.3]
[1643733666111,2.18250251,2791.2,2790.5,0.3]
[1643733666309,0.6732699,2791.2,2790.5,0.3]
[1643733666755,0.6732699,2791.2,2790.7,0.89575]
[1643733667152,0.6732699,2791.2,2790.8,0.3]
[1643733670602,0.62098482,2791.3,2790.8,0.3]
[1643733670603,0.1792,2791.3,2790.8,0.3]
[1643733670808,0.1792,2791.3,2790.9,1.79146]
[1643733671005,0.1792,2791.3,2790.9,1.81370461]
[1643733671211,0.1792,2791.3,2790.9,2.79146]
[1643733671212,0.01788197,2791.3,2790.9,2.79146]
[1643733671411,0.01788197,2791.3,2790.9,1.81566944]
[1643733672011,0.01788197,2791.3,2790.9,1.79146]
[1643733678243,0.01788197,2791.3,2790.9,2.09146]
[1643733678443,0.01788197,2791.3,2791.0,0.89555]
[1643733678644,0.01788197,2791.3,2791.1,0.3]
[1643733678842,0.01788197,2791.3,2791.1,0.31952562]
[1643733679044,0.01788197,2791.3,2791.1,0.3]
[1643733681045,0.90224285,2791.3,2791.1,0.3]
[1643733681346,0.43,2791.6,2791.1,0.3]
[1643733681765,0.1791,2791.9,2791.1,0.3]
[1643733681963,0.1791,2791.9,2791.2,1.79106]
[1643733682277,0.1791,2792.3,2791.8,0.89538]
[1643733682463,1.10351719,2792.7,2791.8,0.89538]
[1643733682464,0.92805456,2792.4,2791.8,0.89538]
[1643733682662,0.92805456,2792.4,2791.8,1.3535493]
[1643733682862,0.1789,2792.6,2791.8,1.3535493]
[1643733683063,0.67351719,2793.0,2791.8,1.3535493]
[1643733683064,0.39180296,2792.5,2791.8,1.3535493]
[1643733683260,0.39180296,2792.5,2791.8,1.33357997]
[1643733683460,0.1789,2792.9,2791.8,1.33357997]
[1643733683862,0.77068546,2792.5,2791.8,1.33357997]
[1643733684061,0.77068546,2792.5,2791.8,1.51247997]
[1643733684260,0.77068546,2792.5,2791.8,2.51247997]
[1643733684463,0.38321427,2792.4,2791.8,1.51247997]
[1643733684665,0.38321427,2792.4,2791.9,1.0]
[1643733684863,0.38321427,2792.4,2791.8,0.43819997]
[1643733685065,0.81321427,2792.4,2791.8,0.43819997]
[1643733685302,0.1789,2792.3,2791.8,0.13819997]
[1643733685507,0.43,2792.2,2791.8,0.13819997]
[1643733685702,0.1789,2792.1,2791.8,0.13819997]
[1643733686202,0.1789,2792.3,2791.8,0.13819997]
[1643733686501,1.51007096,2792.2,2791.8,0.13819997]
[1643733686905,0.78449705,2792.0,2791.9,0.89543]
[1643733687305,0.1789,2792.3,2791.9,0.89543]
[1643733687506,1.51008671,2792.2,2791.9,0.89543]
[1643733687707,1.51008671,2792.2,2791.8,0.13819997]
[1643733689160,1.51008671,2792.2,2791.7,2.09083]
[1643733689359,1.51008671,2792.2,2791.7,0.3]
[1643733689360,0.6089,2792.1,2791.7,0.3]
[1643733689560,1.51008671,2792.0,2791.7,0.3]
[1643733689765,0.73398173,2791.8,2791.6,0.3]
[1643733690161,1.0519444,2791.8,2791.6,0.3]
[1643733690759,0.73398173,2791.8,2791.6,0.3]
[1643733691360,0.73398173,2791.8,2791.4,1.07472]
[1643733691763,0.73398173,2791.8,2791.6,0.3]
[1643733692366,0.73255326,2791.8,2791.6,0.3]
[1643733693004,1.1244747,2791.8,2791.6,0.3]
[1643733693205,1.1244747,2791.8,2791.4,0.1791]
[1643733693206,3.45,2791.5,2791.4,0.1791]
[1643733693406,3.45,2791.5,2791.0,3.21757]
[1643733693604,3.45,2791.5,2791.0,1.97047]
[1643733694205,0.6091,2791.7,2791.0,1.97047]
[1643733694907,0.1791,2791.7,2791.0,3.27047]
[1643733695106,0.1791,2792.5,2791.2,1.79086]
[1643733695305,0.43257132,2791.8,2791.2,1.79086]
[1643733695603,0.43257132,2791.8,2791.3,0.89543]
[1643733696403,0.1791,2792.1,2791.3,0.89543]
[1643733696664,0.68249156,2791.9,2791.3,0.89543]
[1643733696863,1.51028887,2791.8,2791.3,0.89543]
[1643733697264,0.68249156,2791.9,2791.3,0.89543]
[1643733697470,1.03130351,2791.9,2791.3,0.89543]
[1643733697865,1.03130351,2791.9,2791.3,1.89543]
[1643733698066,0.1791,2792.1,2791.3,1.91328932]
[1643733698366,0.6091,2792.7,2791.7,0.89544]
[1643733698568,1.51009997,2792.6,2791.7,0.89544]
[1643733698767,0.1789,2792.5,2791.7,0.89544]
[1643733698966,1.51009997,2792.4,2791.7,0.89544]
[1643733699167,0.9312721,2792.0,2791.7,0.89544]
[1643733699567,0.1789,2792.3,2791.7,0.89544]
[1643733699769,1.51015466,2792.2,2791.7,0.89544]
[1643733699974,0.1789,2792.6,2791.7,4.74526556]
[1643733700172,1.50997986,2792.5,2791.7,5.05320941]
[1643733700415,1.50997986,2792.5,2791.7,12.28924481]
[1643733700620,0.42089024,2792.3,2791.7,12.31842605]
[1643733700815,0.42089024,2792.3,2791.7,9.6103754]
[1643733701019,0.42089024,2792.3,2791.7,8.292204]
[1643733701221,0.42089024,2792.3,2791.9,2.68575]
[1643733701819,0.42089024,2792.3,2792.0,0.3]
[1643733702020,0.42089024,2792.3,2792.1,0.8954]
[1643733702419,0.82629519,2792.4,2792.1,0.8954]
[1643733702623,0.1789,2792.9,2792.1,0.8954]
[1643733702819,1.50993414,2792.8,2792.1,0.8954]
[1643733703021,0.1789,2792.7,2792.1,0.8954]
[1643733703219,1.50993414,2792.6,2792.1,0.8954]
[1643733703419,0.33116951,2792.4,2792.1,0.8954]
[1643733703623,0.87808024,2792.2,2792.1,0.8954]
[1643733703821,2.38810765,2792.2,2792.1,0.8954]
[1643733704461,1.51002741,2792.2,2792.1,0.8954]
[1643733704662,1.51002741,2792.3,2792.1,0.8954]
[1643733705463,0.95290126,2792.2,2792.1,0.8954]
[1643733705671,2.46292867,2792.2,2792.1,0.8954]
[1643733707068,2.46291914,2792.2,2792.1,0.8954]
[1643733707268,0.95290126,2792.2,2792.1,0.8954]
[1643733707568,0.1789,2792.7,2792.1,0.8954]
[1643733707815,1.50986564,2792.6,2792.1,0.8954]
[1643733708010,1.50986564,2792.5,2792.1,0.8954]
[1643733708211,1.50986564,2792.7,2792.1,0.8954]
[1643733709411,0.1789,2792.6,2792.1,0.8954]
[1643733709612,1.50986564,2792.5,2792.1,0.8954]
[1643733709813,0.1789,2792.7,2792.1,0.8954]
[1643733710012,1.50985954,2792.6,2792.1,0.8954]
[1643733710214,1.50985954,2792.5,2792.1,0.8954]
[1643733710416,0.94906366,2792.8,2792.1,0.8954]
[1643733710417,0.1789,2792.8,2792.1,0.8954]
[1643733710611,1.50979621,2792.7,2792.1,1.27146656]
[1643733710813,0.3909096,2793.1,2792.3,1.79037]
[1643733710814,0.1789,2793.0,2792.3,1.79037]
[1643733711014,1.50973803,2792.9,2792.3,2.68557]
[1643733711975,1.50973803,2792.9,2792.4,0.8952]
[1643733712173,1.50973803,2792.9,2792.4,1.7903942]
[1643733713373,2.32825592,2792.9,2792.4,1.7903942]
[1643733713573,1.50973803,2792.8,2792.4,1.7903942]
[1643733714473,1.50973803,2792.7,2792.4,1.7903942]
[1643733714674,0.1789,2793.0,2792.4,1.7903942]
[1643733714675,1.50973803,2792.6,2792.4,1.7903942]
[1643733714872,0.1789,2793.0,2792.4,1.7903942]
[1643733715075,1.50889158,2792.9,2792.4,1.7903942]
[1643733716113,1.50889158,2792.9,2792.5,0.89516]
[1643733716315,1.50889158,2792.9,2792.5,1.79031]
[1643733718123,1.50889158,2792.9,2792.5,3.5806181]
[1643733718720,1.50889158,2792.9,2792.6,0.3]
[1643733718921,1.50889158,2792.9,2792.7,2.68551]
[1643733719157,1.50889158,2792.9,2792.7,1.07513348]
[1643733720761,1.50889158,2792.9,2792.7,3.348e-05]
[1643733720960,0.95333857,2793.1,2792.7,3.348e-05]
[1643733720961,1.36841719,2792.8,2792.7,3.348e-05]
[1643733721159,1.18951719,2792.8,2792.7,3.348e-05]
[1643733721361,0.816,2792.8,2792.7,3.348e-05]
[1643733721565,9.16402291,2792.8,2792.7,3.348e-05]
[1643733721765,0.3835634,2792.7,2791.3,0.179]
[1643733722065,4.62835134,2791.8,2791.1,2.9174401]
[1643733722264,5.14435134,2791.8,2791.1,2.9174401]
[1643733722910,5.14435134,2791.8,2791.1,2.2006701]
[1643733723117,5.14435134,2791.8,2791.1,1.0745701]
[1643733723420,6.7,2791.7,2791.1,0.1789]
[1643733723613,9.96641314,2791.7,2791.1,0.1789]
[1643733723814,0.516,2791.6,2791.1,0.1789]
[1643733724013,6.45,2791.4,2791.1,0.1789]
[1643733724214,1.79654682,2791.3,2791.1,0.1789]
[1643733726568,0.91202341,2791.3,2791.1,0.1789]
[1643733727177,0.91202341,2791.3,2791.0,0.896]
[1643733728078,0.84722628,2791.1,2791.0,0.896]
[1643733728278,1.36322628,2791.1,2791.0,0.896]
[1643733729082,0.516,2791.1,2791.0,0.896]
[1643733729482,0.6951,2791.6,2791.0,0.896]
[1643733729682,0.516,2791.6,2791.0,0.896]
[1643733730181,1.24390673,2791.6,2791.0,0.896]
[1643733730422,0.38948263,2791.5,2791.0,0.896]
[1643733730823,0.23948263,2791.5,2791.0,0.896]
[1643733731430,0.6951,2791.4,2791.0,0.896]
[1643733731629,6.7,2791.2,2790.7,1.79209]
[1643733731826,6.7,2791.2,2790.3,3.583]
[1643733731827,0.99999999,2790.8,2790.3,3.583]
[1643733732028,0.99999999,2790.8,2789.9,7.47]
[1643733732029,7.1451,2790.7,2789.9,7.47]
[1643733732227,1.0,2790.6,2789.9,7.47]
[1643733732427,0.39632783,2789.7,2789.6,0.89634]
[1643733732626,0.6951,2790.5,2789.1,3.76383]
[1643733732627,0.516,2789.9,2789.1,3.76383]
[1643733733025,0.516,2789.9,2789.5,1.7927]
[1643733733631,0.41722671,2789.7,2789.5,1.7927]
[1643733735067,1.0,2790.1,2789.5,2.68902]
[1643733735068,0.6952,2790.1,2789.5,2.68902]
[1643733735264,0.6952,2790.1,2789.5,2.98902]
[1643733735565,0.516,2790.1,2789.6,1.79239]
[1643733735768,0.1792,2790.4,2789.6,1.79239]
[1643733735965,0.1792,2790.4,2789.6,3.47086445]
[1643733736167,1.6952,2790.9,2790.0,0.89603]
[1643733736366,0.6952,2790.9,2790.1,1.79199]
[1643733737164,0.516,2790.9,2790.1,1.79199]
[1643733737368,0.40974644,2790.7,2790.1,2.62763542]
[1643733737581,0.1791,2791.0,2790.3,0.89602]
[1643733737812,0.1791,2791.5,2790.5,1.79162]
[1643733738012,0.1791,2791.8,2790.6,0.1791]
[1643733738216,0.1791,2791.8,2790.7,0.02213117]
[1643733738217,1.51045161,2791.7,2790.7,0.02213117]
[1643733738414,0.1791,2791.6,2790.6,0.1791]
[1643733738614,0.37205672,2791.4,2790.9,0.89583]
[1643733739415,0.1791,2791.8,2790.9,0.89583]
[1643733739713,1.51037696,2791.7,2790.9,0.89583]
[1643733739913,0.1791,2791.6,2790.9,0.89583]
[1643733740117,0.1791,2791.8,2791.1,0.89581]
[1643733740314,0.34038337,2791.6,2791.2,0.89583]
[1643733740514,0.1791,2791.5,2791.1,0.48052498]
[1643733741571,0.1791,2791.8,2791.4,0.89566]
[1643733741774,0.4044,2792.3,2791.4,0.01297879]
[1643733741775,0.1791,2792.0,2791.4,0.01297879]
[1643733741976,0.1791,2792.2,2791.3,0.3]
[1643733742175,0.4044,2792.3,2791.4,0.1789]
[1643733742375,0.4044,2792.3,2791.9,0.8954455]
[1643733742581,0.1789,2792.6,2791.9,0.90152324]
[1643733742778,0.516,2793.0,2792.2,0.89537]
[1643733742978,0.516,2793.0,2792.2,1.19537]
[1643733742979,1.68879739,2792.9,2792.2,1.19537]
[1643733743178,1.50989739,2792.8,2792.2,1.19537]
[1643733743378,0.1789,2792.7,2792.2,1.19537]
[1643733743577,1.50989739,2792.6,2792.2,1.19537]
[1643733743778,1.87789727,2792.6,2792.3,0.8954]
[1643733743980,0.36799988,2792.6,2792.3,0.8954]
[1643733744177,1.1789,2792.9,2792.5,0.3]
[1643733744377,1.5098742,2792.8,2792.5,0.3]
[1643733744577,0.1789,2792.7,2792.5,0.3]
[1643733744778,1.5098742,2792.6,2792.5,0.3]
[1643733745180,0.1789,2792.9,2792.5,0.3]
[1643733745181,1.5098742,2792.8,2792.5,0.3]
[1643733745421,0.53300931,2792.7,2792.5,0.3]
[1643733745618,1.5098742,2792.6,2792.5,0.3]
[1643733745820,1.50986473,2792.6,2792.5,0.3]
[1643733746019,0.35410931,2792.7,2792.5,0.3]
[1643733746220,1.50986086,2792.6,2792.5,0.3]
[1643733749860,0.01344889,2792.4,2791.8,4.43302]
[1643733750263,6.7,2792.5,2791.8,4.43302]
[1643733750663,0.1789,2792.9,2792.0,1.79074]
[1643733750866,2.26517608,2793.5,2792.0,1.79074]
[1643733750867,0.1789,2793.1,2792.1,2.5693417]
[1643733751062,0.1789,2793.4,2792.2,4.47584]
[1643733751266,0.67576738,2793.7,2792.3,0.479]
[1643733751267,1.50964468,2793.3,2792.3,0.479]
[1643733751462,1.50964468,2793.2,2792.3,0.479]
[1643733751660,1.50964468,2793.1,2792.8,0.85871059]
[1643733751863,0.1789,2793.6,2792.8,1.15871059]
[1643733751864,0.18677423,2793.6,2792.8,1.15871059]
[1643733752062,0.67576738,2793.8,2792.8,1.15871059]
[1643733752063,1.5096185,2793.5,2792.8,1.15871059]
[1643733752265,1.5096185,2793.4,2792.8,1.15871059]
[1643733752564,1.5096185,2793.3,2792.8,1.15871059]
[1643733752804,0.1789,2793.5,2792.9,0.89517]
[1643733752805,1.5096185,2793.2,2792.9,0.89517]
[1643733753008,0.1789,2793.5,2792.9,0.89517]
[1643733753009,1.5096185,2793.1,2792.9,0.89517]
[1643733753207,1.5096185,2793.0,2792.9,0.89517]
[1643733753607,0.62115993,2793.5,2792.9,0.89517]
[1643733753806,1.50961571,2793.4,2792.9,0.89517]
[1643733754610,4.26919984,2793.4,2792.9,0.89517]
[1643733754813,2.50961571,2793.3,2792.8,1.79034]
[1643733755011,2.75958413,2793.4,2792.8,1.79034]
[1643733755012,1.68851571,2793.2,2792.8,1.79034]
[1643733755211,1.50961571,2793.1,2792.8,1.79034]
[1643733755411,1.50961571,2793.0,2792.8,1.79034]
[1643733755612,0.1789,2793.4,2792.8,1.79034]
[1643733755613,1.50961571,2792.9,2792.8,1.79034]
[1643733755814,1.50961571,2793.3,2792.8,1.79034]
[1643733756012,1.50961571,2793.3,2792.6,0.1789]
[1643733756013,0.99999999,2793.1,2792.6,0.1789]
[1643733756214,0.99999999,2793.1,2792.0,0.25]
[1643733756215,4.89558576,2793.0,2792.0,0.25]
[1643733756414,0.99999999,2792.7,2791.3,3.58168]
[1643733756672,0.83492885,2792.3,2791.3,3.58168]
[1643733756875,0.33781868,2792.1,2791.4,0.89582]
[1643733757075,5.7937879,2792.0,2790.9,3.8342]
[1643733757272,1.50961571,2791.9,2791.0,1.79179]
[1643733757474,3.75853987,2791.8,2791.0,1.79179]
[1643733757672,1.50961571,2791.7,2791.0,1.79179]
[1643733757872,3.34111106,2791.6,2791.0,1.79179]
[1643733758074,0.37436703,2791.2,2791.0,1.79179]
[1643733758275,0.43,2791.4,2791.0,1.79179]
[1643733758675,0.43,2791.4,2791.1,0.3]
[1643733759074,0.43,2791.4,2791.1,1.19583]
[1643733759274,0.44885534,2791.2,2791.1,1.19583]
[1643733759474,0.1791,2791.6,2791.1,1.19583]
[1643733759475,0.43,2791.6,2791.1,0.3]
[1643733759678,1.6895175,2791.5,2791.1,0.3]
[1643733759876,0.1791,2791.5,2791.1,0.3]
[1643733760317,2.89148054,2792.0,2791.2,1.79163]
[1643733760318,0.1791,2791.8,2791.2,1.79163]
[1643733760520,0.1791,2791.9,2791.2,1.79163]
[1643733760724,0.43470366,2792.0,2791.2,1.79163]
[1643733760924,1.51022045,2791.9,2791.2,1.79163]
[1643733761123,1.68932045,2791.9,2791.2,1.79163]
[1643733761326,0.1791,2791.9,2791.2,1.79163]
[1643733761723,1.51023175,2791.8,2791.2,2.63020967]
[1643733762226,0.43470366,2792.0,2791.6,0.3]
[1643733762424,0.43470366,2792.0,2791.4,1.79143]
[1643733762425,1.5102851,2791.9,2791.4,0.48045971]
[1643733762623,0.1791,2791.8,2791.4,0.48045971]
[1643733762827,0.1791,2791.8,2791.1,0.3]
[1643733762828,1.5102851,2791.7,2791.1,0.3]
[1643733763022,1.5102851,2791.7,2790.8,0.1791]
[1643733763225,0.32852081,2791.2,2791.0,1.79174]
[1643733763625,0.82943857,2791.6,2791.0,1.79174]
[1643733763827,1.68954151,2791.5,2791.0,1.79174]
[1643733764060,1.51044151,2791.4,2791.1,0.3]
[1643733764461,0.1791,2791.5,2791.2,0.89586]
[1643733764661,0.1791,2791.6,2791.2,0.89586]
[1643733764865,0.78743751,2791.7,2791.2,0.89586]
[1643733765062,1.5102943,2791.6,2791.2,0.89586]
[1643733765262,0.35743751,2791.7,2791.2,1.72036662]
[1643733765463,1.51029576,2791.6,2791.2,1.72036662]
[1643733765963,0.1791,2791.8,2791.2,1.72036662]
[1643733766167,0.1791,2792.3,2791.4,0.8956]
[1643733766364,1.51014165,2792.2,2791.4,0.8956]
[1643733766564,1.51014165,2792.2,2791.6,0.3]
[1643733766767,0.6089,2792.7,2791.3,2.09119]
[1643733766768,1.51014165,2792.1,2791.3,2.09119]
[1643733766969,0.39120121,2791.9,2791.3,2.09119]
[1643733767268,0.1789,2792.4,2791.7,0.3]
[1643733767571,1.51009451,2792.3,2791.7,0.3]
[1643733767828,0.1789,2792.2,2791.7,0.3]
[1643733768020,1.51009451,2792.1,2791.7,0.3]
[1643733768220,1.51009451,2792.1,2791.7,1.1955367]
[1643733768422,2.80880763,2793.2,2792.1,3.7]
[1643733768622,0.00787423,2793.6,2792.8,0.01217478]
[1643733768623,0.179,2793.1,2792.8,0.01217478]
[1643733768822,0.1789,2793.5,2793.0,0.01235634]
[1643733769021,0.00787423,2793.7,2793.0,0.01235634]
[1643733769022,0.1789,2793.8,2793.0,0.02280978]
[1643733769420,0.41125754,2793.4,2793.0,0.02280978]
[1643733769620,0.1789,2793.8,2793.0,0.01045344]
[1643733769820,0.88948972,2793.7,2793.0,0.01045344]
[1643733770022,0.1789,2793.6,2793.1,0.895]
[1643733770225,0.18677423,2793.6,2793.0,2.98501]
[1643733771022,0.35104274,2793.2,2793.0,2.98501]
[1643733771424,0.18677423,2793.6,2793.0,2.98501]
[1643733771664,0.18677423,2793.6,2793.0,2.68501]
[1643733771868,0.1789,2793.6,2793.0,2.98501]
[1643733772366,0.1789,2793.7,2793.0,3.8301557]
[1643733772566,0.42080647,2793.6,2793.0,3.8301557]
[1643733773567,0.18677423,2793.8,2793.0,3.8301557]
[1643733773767,0.1789,2793.8,2793.0,3.8301557]
[1643733774566,0.38672913,2793.6,2793.0,3.8301557]
[1643733775169,1.15825571,2793.6,2793.0,2.63501]
[1643733775428,1.15825571,2793.6,2792.6,1.79072]
[1643733775429,0.01763465,2793.2,2792.6,1.79072]
[1643733775625,3.11388768,2793.5,2792.1,0.1789]
[1643733775626,1.00445,2793.0,2792.1,0.1789]
[1643733775826,1.00445,2793.0,2791.5,3.7871]
[1643733775827,0.99999999,2792.7,2791.6,0.25]
[1643733776026,0.99999999,2792.7,2790.5,1.21804958]
[1643733776027,0.43,2792.6,2791.0,3.7796]
[1643733776224,0.43,2792.6,2791.0,3.6007]
[1643733776225,0.65538734,2792.3,2791.0,3.6007]
[1643733776426,0.6091,2792.2,2790.9,1.3345]
[1643733776628,0.6091,2792.2,2790.9,2.22108]
[1643733777027,2.70313512,2792.2,2791.0,0.89585]
[1643733777228,1.0,2792.1,2791.0,0.89585]
[1643733777428,0.3234106,2791.7,2791.1,1.06539]
[1643733777629,0.6091,2791.6,2791.1,1.06539]
[1643733777829,0.6091,2791.6,2791.2,0.3]
[1643733777830,0.42597129,2791.6,2791.2,0.3]
[1643733778432,0.42597129,2791.6,2791.1,1.06539]
[1643733778632,0.1791,2791.5,2790.8,7.47]
[1643733778833,0.43,2791.4,2790.8,7.47]
[1643733779066,0.1791,2791.3,2790.8,7.47]
[1643733779265,0.43,2791.2,2790.8,7.47]
[1643733779466,0.39191954,2791.0,2790.8,7.47]
[1643733779671,5.08,2790.9,2790.8,7.77]
[1643733780272,5.08,2790.9,2790.3,7.72]
[1643733780474,0.1791,2790.8,2790.3,7.72]
[1643733780675,0.43,2790.7,2790.3,7.47]
[1643733781774,0.43,2790.7,2790.3,0.3]
[1643733781975,0.1791,2790.8,2790.3,2.39208]
[1643733782174,0.43,2791.3,2790.4,0.01226187]
[1643733782175,0.1791,2791.1,2790.4,0.01226187]
[1643733782376,0.43,2791.3,2790.4,0.61226187]
[1643733782575,2.76762324,2791.9,2790.4,3.11724955]
[1643733782576,0.43,2791.7,2790.4,3.11724955]
[1643733782816,0.37553957,2791.5,2790.5,1.35714893]
[1643733783017,0.1791,2791.4,2790.5,1.3]
[1643733783219,0.1791,2791.4,2790.5,0.3]
[1643733783418,0.1791,2791.4,2790.9,1.79146]
[1643733783615,0.1791,2791.4,2791.0,0.3]
[1643733783815,0.43,2791.7,2791.0,0.3]
[1643733783816,0.1791,2791.6,2791.0,0.3]
[1643733784017,0.1791,2791.6,2791.1,0.89571]
[1643733784818,0.44821578,2791.4,2791.1,0.89571]
[1643733785018,0.85135161,2792.0,2791.2,1.59942952]
[1643733785220,0.85135161,2792.0,2791.4,0.89559]
[1643733785221,0.1791,2792.0,2791.4,0.89559]
[1643733785420,0.1791,2792.4,2791.4,0.90395685]
[1643733785822,0.1791,2792.4,2791.4,1.19559]
[1643733786020,0.85135161,2792.4,2791.4,1.19559]
[1643733786220,0.1791,2792.4,2791.4,1.19559]
[1643733786422,0.31921247,2792.2,2791.4,1.19559]
[1643733786665,0.1789,2792.1,2791.4,1.19559]
[1643733786966,0.1789,2792.1,2791.6,0.89556]
[1643733787165,0.1789,2792.1,2791.4,2.98671]
[1643733787366,0.1789,2792.1,2791.7,0.3]
[1643733787569,0.1789,2792.3,2791.4,2.68671]
[1643733787967,2.32242843,2792.4,2791.6,1.79115]
[1643733788168,0.179,2792.3,2791.6,1.79115]
[1643733788371,0.179,2792.3,2791.6,0.89556]
[1643733788568,1.51011576,2792.2,2791.6,0.89556]
[1643733788768,0.1789,2792.1,2791.6,0.89556]
[1643733788968,0.1789,2792.1,2791.2,2.67376952]
[1643733788969,1.51011576,2792.0,2791.2,0.1789]
[1643733789172,1.51011576,2792.0,2791.0,1.7916]
[1643733789173,3.33289057,2791.9,2791.0,1.7916]
[1643733789371,21.75225161,2791.6,2790.4,0.00235485]
[1643733789568,21.75225161,2791.6,2790.2,1.1689]
[1643733789569,5.07022185,2791.5,2790.2,1.1689]
[1643733789769,2.51011576,2791.4,2790.2,1.1689]
[1643733789969,25.11554807,2791.3,2790.2,8.6389]
[1643733790169,21.75225161,2791.1,2790.2,7.47]
[1643733790431,1.0050377,2790.9,2790.0,19.146762]
[1643733790731,23.06921576,2790.8,2790.0,19.146762]
[1643733790934,4.20605769,2790.7,2790.0,19.146762]
[1643733791133,0.70869847,2790.4,2790.0,19.146762]
[1643733791333,2.11921576,2790.3,2790.0,19.146762]
[1643733791535,2.60847922,2790.2,2790.0,19.146762]
[1643733791734,7.3092,2790.1,2790.0,19.146762]
[1643733791936,9.82029082,2790.1,2790.0,19.146762]
[1643733792137,10.12029082,2790.1,2790.0,19.146762]
[1643733792636,10.48438609,2790.1,2790.0,19.146762]
[1643733793735,10.18438609,2790.1,2790.0,19.146762]
[1643733794168,7.67329527,2790.1,2790.0,19.146762]
[1643733794369,0.79409527,2790.1,2790.0,19.146762]
[1643733794569,0.79409527,2790.1,2790.0,19.446762]
[1643733794772,0.79409527,2790.1,2790.0,19.267662]
[1643733795168,0.79409527,2790.1,2790.0,18.967662]
[1643733795368,3.29409527,2790.1,2790.0,19.267662]
[1643733795971,0.79409527,2790.1,2790.0,19.267662]
[1643733798727,0.36409527,2790.1,2790.0,19.267662]
[1643733799933,0.36409527,2790.1,2790.0,18.967662]
[1643733800330,3.31409527,2790.1,2790.0,19.267662]
[1643733800530,0.36409527,2790.1,2790.0,19.267662]
[1643733801334,2.91409527,2790.1,2790.0,19.267662]
[1643733803773,0.36409527,2790.1,2790.0,19.267662]
[1643733805317,3.26409527,2790.1,2790.0,19.267662]
[1643733808221,3.26409527,2790.1,2790.0,18.967662]
[1643733808421,10.43184621,2790.1,2790.0,16.52141766]
[1643733808621,10.61104621,2790.1,2790.0,5.05841766]
[1643733808822,11.61104621,2790.1,2790.0,5.05841766]
[1643733810264,11.61104621,2790.1,2790.0,4.37041766]
[1643733810464,11.61104621,2790.1,2790.0,3.67041766]
[1643733810665,0.67138589,2789.7,2789.5,3.99141766]
[1643733810864,0.79266216,2789.6,2789.3,0.25]
[1643733811068,0.79266216,2789.6,2789.2,0.89652]
[1643733812917,0.79266216,2789.6,2789.2,1.79294]
[1643733813321,0.43,2789.6,2789.2,1.79294]
[1643733813722,0.73,2789.6,2789.2,1.79294]
[1643733813925,0.73,2789.6,2789.3,1.79284]
[1643733814726,1.0,2789.9,2789.3,1.79284]
[1643733814924,0.43,2789.9,2789.4,1.79284]
[1643733815123,0.35304712,2789.6,2789.4,1.79284]
[1643733815323,0.78304712,2789.6,2789.4,1.79284]
[1643733816328,0.78304712,2789.6,2788.6,0.78823]
[1643733816329,0.93948963,2789.5,2788.6,0.78823]
[1643733816571,0.93948963,2789.5,2788.4,9.50813994]
[1643733816572,0.43,2789.4,2788.4,9.68733994]
[1643733816981,0.43,2789.4,2788.4,3.39523994]
[1643733817176,0.43,2789.4,2789.0,0.89672]
[1643733817177,0.1792,2789.3,2789.0,0.89672]
[1643733817376,1.0,2789.8,2789.0,0.89672]